[Event "*** Monthly 3|2 Blitz Masters"]
[Site "Chess.com"]
[Date "2014.10.28"]
[Round "4"]
[White "DanielRensch"]
[Black "KingPetrosian"]
[Result "1-0"]
[WhiteElo "2335"]
[BlackElo "2066"]
[TimeControl "180+2"]
[EndTime "12:37:47 PDT"]
[Termination "DanielRensch won by resignation"]

1. e4 {[%clk 0:03:00]} 1... c5 {[%clk 0:02:57.4]} 2. Nf3 {[%clk 0:02:56.9]} 2...
d6 {[%clk 0:02:52.7]} 3. d4 {[%clk 0:02:57.4]} 3... cxd4 {[%clk 0:02:51.8]} 4.
Nxd4 {[%clk 0:02:59.3]} 4... Nf6 {[%clk 0:02:46.2]} 5. Nc3 {[%clk 0:03:00.6]}
5... a6 {[%clk 0:02:44.2]} 6. Be3 {[%clk 0:03:00.8]} 6... e5 {[%clk 0:02:38.1]}
7. Nb3 {[%clk 0:03:01.7]} 7... Be7 {[%clk 0:02:34]} 8. h3 {[%clk 0:03:02.5]}
8... Be6 {[%clk 0:02:30.7]} 9. Qf3 {[%clk 0:03:02.2]} 9... Nc6 {[%clk
0:02:27.8]} 10. g4 {[%clk 0:03:01.5]} 10... d5 {[%clk 0:02:24.6]} 11. O-O-O
{[%clk 0:02:58.8]} 11... d4 {[%clk 0:02:20.8]} 12. Bg5 {[%clk 0:02:31.8]} 12...
Nb4 {[%clk 0:02:13.6]} 13. a3 {[%clk 0:02:28.1]} 13... Nxc2 {[%clk 0:02:01.8]}
14. Kxc2 {[%clk 0:02:25.7]} 14... Qb6 {[%clk 0:01:57.7]} 15. Nd5 {[%clk
0:02:13.3]} 15... Qc6+ {[%clk 0:01:53.1]} 16. Kb1 {[%clk 0:02:05.2]} 16... Nxd5
{[%clk 0:01:45.1]} 17. Bxe7 {[%clk 0:01:59.3]} 17... Nxe7 {[%clk 0:01:41.7]} 18.
Rc1 {[%clk 0:01:59.8]} 18... Qd6 {[%clk 0:01:36.9]} 19. Nc5 {[%clk 0:02:00.1]}
19... Rc8 {[%clk 0:01:33.2]} 20. Nxe6 {[%clk 0:01:57.9]} 20... Rxc1+ {[%clk
0:01:29.7]} 21. Kxc1 {[%clk 0:01:59.8]} 21... fxe6 {[%clk 0:01:25.1]} 22. Qb3
{[%clk 0:01:54]} 22... Qd7 {[%clk 0:01:21.5]} 23. Bc4 {[%clk 0:01:51.3]} 23...
Qc6 {[%clk 0:01:17.1]} 24. Kb1 {[%clk 0:01:51.4]} 24... Qxe4+ {[%clk 0:01:12.7]}
25. Ka2 {[%clk 0:01:52.3]} 25... Qxh1 {[%clk 0:01:08.3]} 26. Bxe6 {[%clk
0:01:53.1]} 26... Rf8 {[%clk 0:01:03.2]} 27. Qb4 {[%clk 0:01:36.8]} 27... Qc6
{[%clk 0:00:58.5]} 28. Bb3 {[%clk 0:01:37.5]} 28... Rxf2 {[%clk 0:00:51.8]} 29.
Ba4 {[%clk 0:01:37.9]} 29... b5 {[%clk 0:00:48.6]} 30. Bb3 {[%clk 0:01:39]}
30... Qc1 {[%clk 0:00:43.5]} 31. Be6 {[%clk 0:01:35.1]} 31... d3 {[%clk
0:00:39.7]} 1-0

[Event "*** Monthly 3|2 Blitz Masters"]
[Site "Chess.com"]
[Date "2014.10.28"]
[Round "4"]
[White "mokerslag"]
[Black "vovkcoach"]
[Result "0-1"]
[WhiteElo "2302"]
[BlackElo "2513"]
[TimeControl "180+2"]
[EndTime "12:38:30 PDT"]
[Termination "vovkcoach won by resignation"]

1. e4 {[%clk 0:03:00]} 1... c5 {[%clk 0:02:58.2]} 2. Nf3 {[%clk 0:03:01.4]} 2...
e6 {[%clk 0:02:59]} 3. d4 {[%clk 0:03:02.1]} 3... cxd4 {[%clk 0:03:00.9]} 4.
Nxd4 {[%clk 0:03:00.6]} 4... a6 {[%clk 0:03:01.8]} 5. Nc3 {[%clk 0:03:01.5]}
5... Qc7 {[%clk 0:03:02.2]} 6. g3 {[%clk 0:03:03]} 6... Bb4 {[%clk 0:03:01.2]}
7. Bd2 {[%clk 0:02:58.9]} 7... Nf6 {[%clk 0:02:56.5]} 8. Bg2 {[%clk 0:02:58.5]}
8... Nc6 {[%clk 0:02:57.9]} 9. Nb3 {[%clk 0:02:58.8]} 9... Be7 {[%clk
0:02:55.7]} 10. O-O {[%clk 0:02:59.6]} 10... O-O {[%clk 0:02:56.3]} 11. a4
{[%clk 0:02:54.1]} 11... b6 {[%clk 0:02:54.6]} 12. Be3 {[%clk 0:02:54.6]} 12...
Bb7 {[%clk 0:02:49.6]} 13. f4 {[%clk 0:02:55.8]} 13... d6 {[%clk 0:02:50.2]} 14.
g4 {[%clk 0:02:57]} 14... Rac8 {[%clk 0:02:37.3]} 15. g5 {[%clk 0:02:57.9]}
15... Nd7 {[%clk 0:02:38.3]} 16. Rf3 {[%clk 0:02:59.4]} 16... Rfe8 {[%clk
0:02:19.4]} 17. Rh3 {[%clk 0:02:58.9]} 17... g6 {[%clk 0:02:13.7]} 18. Qe1
{[%clk 0:02:55.9]} 18... Nb4 {[%clk 0:02:00.6]} 19. Qh4 {[%clk 0:02:55.3]} 19...
h5 {[%clk 0:02:00.6]} 20. Bf3 {[%clk 0:02:35.1]} 20... Bf8 {[%clk 0:01:50.8]}
21. Bxh5 {[%clk 0:02:33.7]} 21... gxh5 {[%clk 0:01:51]} 22. Qxh5 {[%clk
0:02:34.6]} 22... Bg7 {[%clk 0:01:52.4]} 23. f5 {[%clk 0:01:39.6]} 23... exf5
{[%clk 0:01:49.5]} 24. Bd4 {[%clk 0:01:39.6]} 24... Ne5 {[%clk 0:01:39]} 25. Rf1
{[%clk 0:01:25.1]} 25... Nxc2 {[%clk 0:01:34.6]} 26. g6 {[%clk 0:00:26.5]} 26...
Nxd4 {[%clk 0:01:26.8]} 27. Nxd4 {[%clk 0:00:27.4]} 27... Qc5 {[%clk 0:01:27.1]}
28. gxf7+ {[%clk 0:00:18.8]} 28... Nxf7 {[%clk 0:01:26.7]} 29. Ne2 {[%clk
0:00:18.5]} 29... Bxd4+ {[%clk 0:01:25.6]} 30. Nxd4 {[%clk 0:00:08.3]} 30...
Qxd4+ {[%clk 0:01:27.5]} 31. Rf2 {[%clk 0:00:10.2]} 31... Rc1+ {[%clk
0:01:26.3]} 0-1

[Event "*** Monthly 3|2 Blitz Masters"]
[Site "Chess.com"]
[Date "2014.10.28"]
[Round "4"]
[White "WanderingPuppet"]
[Black "Th3ChessViking"]
[Result "0-1"]
[WhiteElo "2066"]
[BlackElo "2380"]
[TimeControl "180+2"]
[EndTime "12:39:12 PDT"]
[Termination "Th3ChessViking won by resignation"]

1. e4 {[%clk 0:03:00]} 1... e6 {[%clk 0:02:52.1]} 2. d4 {[%clk 0:03:00.4]} 2...
d5 {[%clk 0:02:53.6]} 3. Nc3 {[%clk 0:03:01.9]} 3... Bb4 {[%clk 0:02:53.5]} 4.
e5 {[%clk 0:03:03]} 4... Qd7 {[%clk 0:02:53.4]} 5. Qg4 {[%clk 0:02:49.3]} 5...
Bf8 {[%clk 0:02:51.8]} 6. Be3 {[%clk 0:02:23]} 6... b6 {[%clk 0:02:50.7]} 7. Bb5
{[%clk 0:02:23]} 7... Nc6 {[%clk 0:02:50]} 8. f4 {[%clk 0:02:14.4]} 8... Nh6
{[%clk 0:02:47.2]} 9. Qh3 {[%clk 0:02:05.9]} 9... a6 {[%clk 0:02:46.5]} 10. Bd3
{[%clk 0:01:45.3]} 10... Nb4 {[%clk 0:02:44.7]} 11. Nf3 {[%clk 0:01:39.8]} 11...
Bb7 {[%clk 0:02:40.3]} 12. O-O {[%clk 0:01:37.9]} 12... Nxd3 {[%clk 0:02:39.4]}
13. cxd3 {[%clk 0:01:38.5]} 13... O-O-O {[%clk 0:02:41.3]} 14. Rfc1 {[%clk
0:01:29]} 14... Kb8 {[%clk 0:02:42.5]} 15. a3 {[%clk 0:01:25.9]} 15... Be7
{[%clk 0:02:39.1]} 16. b4 {[%clk 0:01:24.2]} 16... Nf5 {[%clk 0:02:38.7]} 17.
Bf2 {[%clk 0:01:24]} 17... h5 {[%clk 0:02:38.3]} 18. Rab1 {[%clk 0:01:15.8]}
18... f6 {[%clk 0:02:38]} 19. a4 {[%clk 0:01:14]} 19... Rdg8 {[%clk 0:02:35.5]}
20. a5 {[%clk 0:00:59.2]} 20... b5 {[%clk 0:02:35.2]} 21. Na2 {[%clk 0:00:54.2]}
21... g5 {[%clk 0:02:30.6]} 22. fxg5 {[%clk 0:00:45.2]} 22... fxg5 {[%clk
0:02:32.5]} 23. g4 {[%clk 0:00:46.3]} 23... hxg4 {[%clk 0:02:29.8]} 24. Qxg4
{[%clk 0:00:48.2]} 24... Nh6 {[%clk 0:02:28]} 25. Qg2 {[%clk 0:00:46.1]} 25...
Rf8 {[%clk 0:02:19.4]} 26. Nd2 {[%clk 0:00:42.3]} 26... Nf5 {[%clk 0:02:08.2]}
27. Nb3 {[%clk 0:00:39.5]} 27... Rf7 {[%clk 0:02:07.3]} 28. Kh1 {[%clk
0:00:37.9]} 28... Rfh7 {[%clk 0:02:07.3]} 29. Bg1 {[%clk 0:00:38.8]} 29... g4
{[%clk 0:02:06.4]} 30. Rb2 {[%clk 0:00:39.4]} 30... g3 {[%clk 0:02:05.2]} 31.
Qf3 {[%clk 0:00:36.2]} 31... Bg5 {[%clk 0:01:45.4]} 32. Rcc2 {[%clk 0:00:34.4]}
32... Qg7 {[%clk 0:01:42.7]} 33. Rg2 {[%clk 0:00:29.8]} 33... Rh3 {[%clk
0:01:38.1]} 34. Qg4 {[%clk 0:00:26.4]} 34... Qh6 {[%clk 0:01:36.8]} 35. Nc5
{[%clk 0:00:23.2]} 35... Bc8 {[%clk 0:01:36.4]} 36. Nc3 {[%clk 0:00:19.1]} 36...
Be3 {[%clk 0:01:34.1]} 37. N3e4 {[%clk 0:00:12.4]} 37... Bxg1 {[%clk 0:01:28.5]}
38. Kxg1 {[%clk 0:00:12.6]} 38... Qc1+ {[%clk 0:01:28.2]} 0-1

[Event "*** Monthly 3|2 Blitz Masters"]
[Site "Chess.com"]
[Date "2014.10.28"]
[Round "4"]
[White "mat_kolosowski"]
[Black "marabu44"]
[Result "1-0"]
[WhiteElo "2347"]
[BlackElo "2222"]
[TimeControl "180+2"]
[EndTime "12:39:19 PDT"]
[Termination "mat_kolosowski won by checkmate"]

1. d4 {[%clk 0:01:53]} 1... e6 {[%clk 0:02:56.3]} 2. c4 {[%clk 0:01:54.4]} 2...
f5 {[%clk 0:02:57.1]} 3. Nf3 {[%clk 0:01:55.5]} 3... Nf6 {[%clk 0:02:57.7]} 4.
g3 {[%clk 0:01:57.2]} 4... d5 {[%clk 0:02:57.3]} 5. Bg2 {[%clk 0:01:58.2]} 5...
c6 {[%clk 0:02:58.4]} 6. O-O {[%clk 0:01:59.7]} 6... Bd6 {[%clk 0:02:59.1]} 7.
Qc2 {[%clk 0:02:00.9]} 7... O-O {[%clk 0:02:59.5]} 8. b3 {[%clk 0:02:02.4]} 8...
Qe7 {[%clk 0:03:00.3]} 9. Bb2 {[%clk 0:02:03.8]} 9... Ne4 {[%clk 0:02:58.9]} 10.
e3 {[%clk 0:02:03.6]} 10... Nd7 {[%clk 0:02:58.9]} 11. Nc3 {[%clk 0:02:00.5]}
11... Ndf6 {[%clk 0:02:57.9]} 12. Ne2 {[%clk 0:02:01.3]} 12... a5 {[%clk
0:02:41.6]} 13. Nf4 {[%clk 0:02:02.4]} 13... Bxf4 {[%clk 0:02:25.2]} 14. exf4
{[%clk 0:02:02.8]} 14... h6 {[%clk 0:02:24.3]} 15. Ne5 {[%clk 0:02:03.9]} 15...
Qe8 {[%clk 0:02:18.1]} 16. Ba3 {[%clk 0:02:04.9]} 16... c5 {[%clk 0:01:57.6]}
17. dxc5 {[%clk 0:02:05.5]} 17... Nd7 {[%clk 0:01:45.3]} 18. Nxd7 {[%clk
0:01:58.8]} 18... Bxd7 {[%clk 0:01:45.1]} 19. cxd5 {[%clk 0:01:55.4]} 19... exd5
{[%clk 0:01:44.4]} 20. c6 {[%clk 0:01:55.4]} 20... Bxc6 {[%clk 0:01:43.7]} 21.
Bxf8 {[%clk 0:01:56.6]} 21... Qxf8 {[%clk 0:01:45]} 22. Rad1 {[%clk 0:01:53.9]}
22... Rd8 {[%clk 0:01:43.1]} 23. Rfe1 {[%clk 0:01:54.2]} 23... Kh7 {[%clk
0:01:33.6]} 24. Rd4 {[%clk 0:01:53.2]} 24... Qf6 {[%clk 0:01:26.9]} 25. Red1
{[%clk 0:01:54.2]} 25... Re8 {[%clk 0:01:21.6]} 26. Bf1 {[%clk 0:01:51]} 26...
g5 {[%clk 0:01:06.6]} 27. fxg5 {[%clk 0:01:51.1]} 27... hxg5 {[%clk 0:01:07.2]}
28. Rxd5 {[%clk 0:01:36.6]} 28... Bxd5 {[%clk 0:01:05]} 29. Rxd5 {[%clk
0:01:38.5]} 29... Kg6 {[%clk 0:00:49.7]} 30. Rxa5 {[%clk 0:01:36.2]} 30... Qb6
{[%clk 0:00:38.6]} 31. Rd5 {[%clk 0:01:31.9]} 31... Rc8 {[%clk 0:00:37.4]} 32.
Bc4 {[%clk 0:01:21.6]} 32... Qb4 {[%clk 0:00:35.3]} 33. Qe2 {[%clk 0:01:18.8]}
33... Rc6 {[%clk 0:00:31]} 34. g4 {[%clk 0:01:18.3]} 34... Nc3 {[%clk
0:00:24.7]} 35. Qe8+ {[%clk 0:01:15.6]} 35... Kh6 {[%clk 0:00:21]} 36. Qh5+
{[%clk 0:01:15.8]} 36... Kg7 {[%clk 0:00:22]} 37. Qxg5+ {[%clk 0:01:15.6]} 37...
Rg6 {[%clk 0:00:20.8]} 38. Rd7+ {[%clk 0:01:15.4]} 38... Kh8 {[%clk 0:00:20.9]}
39. Qd8+ {[%clk 0:01:15.9]} 39... Rg8 {[%clk 0:00:21.3]} 40. Qxg8# {[%clk
0:01:15.9]} 1-0

[Event "*** Monthly 3|2 Blitz Masters"]
[Site "Chess.com"]
[Date "2014.10.28"]
[Round "4"]
[White "David_Klein"]
[Black "lorcho"]
[Result "1-0"]
[WhiteElo "2370"]
[BlackElo "2413"]
[TimeControl "180+2"]
[EndTime "12:39:46 PDT"]
[Termination "David_Klein won by resignation"]

1. e4 {[%clk 0:03:00]} 1... e6 {[%clk 0:02:59.1]} 2. d4 {[%clk 0:03:00.7]} 2...
d5 {[%clk 0:03:00.4]} 3. Nd2 {[%clk 0:03:02.1]} 3... Nf6 {[%clk 0:03:01.9]} 4.
e5 {[%clk 0:03:03.1]} 4... Nfd7 {[%clk 0:03:03.2]} 5. c3 {[%clk 0:03:04.8]} 5...
c5 {[%clk 0:03:04.9]} 6. Bd3 {[%clk 0:03:06.4]} 6... Nc6 {[%clk 0:03:06.8]} 7.
Ngf3 {[%clk 0:03:07.5]} 7... cxd4 {[%clk 0:03:08.4]} 8. cxd4 {[%clk 0:03:08.5]}
8... f6 {[%clk 0:03:10.1]} 9. exf6 {[%clk 0:03:08.8]} 9... Nxf6 {[%clk 0:03:12]}
10. O-O {[%clk 0:03:03.7]} 10... Bd6 {[%clk 0:03:13.1]} 11. b3 {[%clk 0:03:05]}
11... O-O {[%clk 0:03:13.4]} 12. Bb2 {[%clk 0:03:06.3]} 12... Qb6 {[%clk
0:03:13.8]} 13. Ne5 {[%clk 0:03:04.6]} 13... Nxd4 {[%clk 0:03:03.9]} 14. Ndc4
{[%clk 0:03:04.5]} 14... dxc4 {[%clk 0:02:58.3]} 15. Nxc4 {[%clk 0:03:05.4]}
15... Bxh2+ {[%clk 0:02:49.7]} 16. Kxh2 {[%clk 0:03:07.3]} 16... Qc7+ {[%clk
0:02:50.3]} 17. Kg1 {[%clk 0:03:05.4]} 17... Nc6 {[%clk 0:02:39.7]} 18. Qe2
{[%clk 0:03:03.1]} 18... Bd7 {[%clk 0:02:26.2]} 19. Rac1 {[%clk 0:03:02.6]}
19... Rae8 {[%clk 0:02:25.7]} 20. Ne5 {[%clk 0:03:01.3]} 20... Qd8 {[%clk
0:02:22.4]} 21. Rcd1 {[%clk 0:02:34.9]} 21... Qe7 {[%clk 0:02:18.3]} 22. Bxh7+
{[%clk 0:02:00.8]} 22... Kxh7 {[%clk 0:02:06.6]} 23. Rxd7 {[%clk 0:01:59.7]}
23... Qc5 {[%clk 0:01:17]} 24. Qd3+ {[%clk 0:01:19.2]} 24... Kg8 {[%clk
0:01:06.6]} 25. Rxg7+ {[%clk 0:01:17.8]} 25... Kxg7 {[%clk 0:00:57]} 26. Qg6+
{[%clk 0:01:18.3]} 26... Kh8 {[%clk 0:00:58.6]} 27. Qh6+ {[%clk 0:01:17.3]}
27... Kg8 {[%clk 0:00:58.7]} 28. Qg6+ {[%clk 0:01:16.7]} 28... Kh8 {[%clk
0:01:00.1]} 29. Nf7+ {[%clk 0:00:43.2]} 29... Rxf7 {[%clk 0:01:01]} 30. Qxf7
{[%clk 0:00:45.1]} 30... e5 {[%clk 0:01:01.7]} 31. Qxf6+ {[%clk 0:00:45.4]}
31... Kg8 {[%clk 0:01:03.3]} 32. Rc1 {[%clk 0:00:38.1]} 32... Qe7 {[%clk
0:00:42.2]} 33. Qg6+ {[%clk 0:00:38.5]} 33... Kf8 {[%clk 0:00:43.4]} 34. Rc3
{[%clk 0:00:31.9]} 34... Nd4 {[%clk 0:00:41.6]} 35. Rh3 {[%clk 0:00:29.3]} 35...
Qg7 {[%clk 0:00:19]} 36. Ba3+ {[%clk 0:00:29.2]} 1-0

[Event "*** Monthly 3|2 Blitz Masters"]
[Site "Chess.com"]
[Date "2014.10.28"]
[Round "4"]
[White "Fischwitsch"]
[Black "kevin9512"]
[Result "1/2-1/2"]
[WhiteElo "2062"]
[BlackElo "1869"]
[TimeControl "180+2"]
[EndTime "12:39:48 PDT"]
[Termination "Game drawn by agreement"]

1. c4 {[%clk 0:03:00]} 1... Nf6 {[%clk 0:02:53]} 2. g3 {[%clk 0:03:01.3]} 2...
e6 {[%clk 0:02:52.9]} 3. Bg2 {[%clk 0:03:02.6]} 3... d5 {[%clk 0:02:54.2]} 4.
Nf3 {[%clk 0:03:03.9]} 4... Be7 {[%clk 0:02:55]} 5. O-O {[%clk 0:03:05]} 5...
O-O {[%clk 0:02:56.1]} 6. b3 {[%clk 0:03:05.9]} 6... c5 {[%clk 0:02:56]} 7. Bb2
{[%clk 0:03:06.8]} 7... Nc6 {[%clk 0:02:57]} 8. e3 {[%clk 0:03:08]} 8... b6
{[%clk 0:02:58.1]} 9. Nc3 {[%clk 0:03:08.7]} 9... Ba6 {[%clk 0:02:59.1]} 10. d3
{[%clk 0:02:57.9]} 10... Rc8 {[%clk 0:02:58.8]} 11. Qe2 {[%clk 0:02:55.3]} 11...
Qd7 {[%clk 0:02:59]} 12. Rfd1 {[%clk 0:02:55.9]} 12... Rfd8 {[%clk 0:02:59.4]}
13. Nb5 {[%clk 0:02:48]} 13... Bb7 {[%clk 0:02:55.9]} 14. cxd5 {[%clk
0:02:43.9]} 14... Nxd5 {[%clk 0:02:54.6]} 15. d4 {[%clk 0:02:44.1]} 15... a6
{[%clk 0:02:55.1]} 16. Nc3 {[%clk 0:02:43.4]} 16... cxd4 {[%clk 0:02:53.6]} 17.
Nxd5 {[%clk 0:02:42]} 17... Qxd5 {[%clk 0:02:53.7]} 18. exd4 {[%clk 0:02:20.2]}
18... Bf6 {[%clk 0:02:31.3]} 19. Qe3 {[%clk 0:02:21.3]} 19... Qf5 {[%clk
0:02:28.3]} 20. Ne5 {[%clk 0:02:18.9]} 20... Bxe5 {[%clk 0:02:15]} 21. Be4
{[%clk 0:02:09.2]} 21... Bxd4 {[%clk 0:01:45]} 22. Bxd4 {[%clk 0:02:08.7]} 22...
Qh5 {[%clk 0:01:42]} 23. Bf3 {[%clk 0:02:09.2]} 23... Qg6 {[%clk 0:01:38.3]} 24.
Bxb6 {[%clk 0:02:09.5]} 24... Rxd1+ {[%clk 0:01:11]} 25. Rxd1 {[%clk 0:02:11.4]}
25... Ba8 {[%clk 0:01:06.8]} 26. Be4 {[%clk 0:01:24.7]} 26... Qh5 {[%clk
0:01:04.7]} 27. Rc1 {[%clk 0:01:19.6]} 27... Bb7 {[%clk 0:00:39]} 28. Qd3 {[%clk
0:00:23.3]} 28... f5 {[%clk 0:00:17]} 29. Qd7 {[%clk 0:00:21]} 29... Qf7 {[%clk
0:00:17.6]} 30. Bxc6 {[%clk 0:00:21.1]} 30... Rxc6 {[%clk 0:00:16.3]} 31. Qxf7+
{[%clk 0:00:15.6]} 31... Kxf7 {[%clk 0:00:17.4]} 32. Rxc6 {[%clk 0:00:16.9]}
32... Bxc6 {[%clk 0:00:18.6]} 33. f4 {[%clk 0:00:16.7]} 1/2-1/2

[Event "*** Monthly 3|2 Blitz Masters"]
[Site "Chess.com"]
[Date "2014.10.28"]
[Round "4"]
[White "GMNeiksans"]
[Black "wannabe2700"]
[Result "1-0"]
[WhiteElo "2488"]
[BlackElo "2319"]
[TimeControl "180+2"]
[EndTime "12:40:46 PDT"]
[Termination "GMNeiksans won by checkmate"]

1. e4 {[%clk 0:03:00]} 1... e6 {[%clk 0:02:57.9]} 2. d4 {[%clk 0:03:00.5]} 2...
d5 {[%clk 0:02:59]} 3. Nd2 {[%clk 0:03:01.6]} 3... Nf6 {[%clk 0:02:58.9]} 4. e5
{[%clk 0:03:01.1]} 4... Nfd7 {[%clk 0:02:59.3]} 5. Bd3 {[%clk 0:03:02]} 5... c5
{[%clk 0:03:00.5]} 6. c3 {[%clk 0:03:03.3]} 6... Nc6 {[%clk 0:03:01.7]} 7. Ne2
{[%clk 0:03:04.3]} 7... cxd4 {[%clk 0:02:58.5]} 8. cxd4 {[%clk 0:03:05.1]} 8...
f6 {[%clk 0:03:00.1]} 9. exf6 {[%clk 0:03:05.4]} 9... Nxf6 {[%clk 0:03:00.7]}
10. Nf3 {[%clk 0:03:03.3]} 10... Bd6 {[%clk 0:03:01.4]} 11. O-O {[%clk
0:03:03.3]} 11... O-O {[%clk 0:03:02.1]} 12. Bf4 {[%clk 0:03:02.9]} 12... Nh5
{[%clk 0:02:53.6]} 13. Bxd6 {[%clk 0:02:53.9]} 13... Qxd6 {[%clk 0:02:55.5]} 14.
Bb5 {[%clk 0:02:53.4]} 14... Rxf3 {[%clk 0:02:51]} 15. gxf3 {[%clk 0:02:54]}
15... Ne7 {[%clk 0:02:49.4]} 16. Qd2 {[%clk 0:02:48.3]} 16... Ng6 {[%clk
0:02:42.8]} 17. Qg5 {[%clk 0:02:27.2]} 17... Nhf4 {[%clk 0:02:36.5]} 18. Nxf4
{[%clk 0:02:27.8]} 18... Nxf4 {[%clk 0:02:38.4]} 19. Qe5 {[%clk 0:02:21.6]}
19... Qxe5 {[%clk 0:01:56.5]} 20. dxe5 {[%clk 0:02:22.4]} 20... a6 {[%clk
0:01:58.4]} 21. Ba4 {[%clk 0:02:22.4]} 21... Nd3 {[%clk 0:01:58.7]} 22. Bb3
{[%clk 0:01:57.3]} 22... Nxe5 {[%clk 0:01:57.1]} 23. f4 {[%clk 0:01:50.5]} 23...
Nd3 {[%clk 0:01:56.4]} 24. f5 {[%clk 0:01:51.3]} 24... Nxb2 {[%clk 0:01:40]} 25.
Rac1 {[%clk 0:01:43.8]} 25... Nd3 {[%clk 0:01:38.3]} 26. Rc7 {[%clk 0:01:43.4]}
26... Ne5 {[%clk 0:01:22.8]} 27. f4 {[%clk 0:01:30.4]} 27... Nc6 {[%clk
0:01:20.7]} 28. Re1 {[%clk 0:01:26.7]} 28... Nd4 {[%clk 0:01:14.4]} 29. fxe6
{[%clk 0:01:14]} 29... Nf3+ {[%clk 0:01:11.9]} 30. Kf1 {[%clk 0:01:15.2]} 30...
Nxe1 {[%clk 0:01:12.3]} 31. Bxd5 {[%clk 0:01:16.3]} 31... Kf8 {[%clk 0:00:53.9]}
32. Kxe1 {[%clk 0:01:16.9]} 32... a5 {[%clk 0:00:42.9]} 33. Rf7+ {[%clk
0:01:15.3]} 33... Ke8 {[%clk 0:00:41.1]} 34. Rxg7 {[%clk 0:01:16.3]} 34... a4
{[%clk 0:00:38.9]} 35. f5 {[%clk 0:01:15.4]} 35... Ra5 {[%clk 0:00:38.5]} 36. f6
{[%clk 0:01:15.2]} 36... Bxe6 {[%clk 0:00:39.5]} 37. Re7+ {[%clk 0:01:14.2]}
37... Kf8 {[%clk 0:00:39.4]} 38. Bxe6 {[%clk 0:01:14.8]} 38... Re5+ {[%clk
0:00:38.5]} 39. Kd2 {[%clk 0:01:10.8]} 39... Re4 {[%clk 0:00:39.6]} 40. Kd3
{[%clk 0:01:00.3]} 40... Rf4 {[%clk 0:00:39.1]} 41. Rxh7 {[%clk 0:00:52.2]}
41... Rxf6 {[%clk 0:00:38.8]} 42. Rf7+ {[%clk 0:00:43.3]} 42... Rxf7 {[%clk
0:00:38.5]} 43. Bxf7 {[%clk 0:00:44.6]} 43... Kxf7 {[%clk 0:00:40.4]} 44. Kc4
{[%clk 0:00:46.1]} 44... Ke6 {[%clk 0:00:19.7]} 45. Kb4 {[%clk 0:00:47.2]} 45...
Kf5 {[%clk 0:00:17.3]} 46. Kxa4 {[%clk 0:00:48.2]} 46... Kg4 {[%clk 0:00:19]}
47. Kb5 {[%clk 0:00:49.5]} 47... Kh3 {[%clk 0:00:20.9]} 48. Kb6 {[%clk
0:00:50.9]} 48... Kxh2 {[%clk 0:00:22.6]} 49. Kxb7 {[%clk 0:00:52.3]} 49... Kg3
{[%clk 0:00:24.5]} 50. a4 {[%clk 0:00:53.5]} 50... Kf4 {[%clk 0:00:26.4]} 51. a5
{[%clk 0:00:55]} 51... Ke5 {[%clk 0:00:28.3]} 52. a6 {[%clk 0:00:56.5]} 52...
Kd6 {[%clk 0:00:30.2]} 53. a7 {[%clk 0:00:58]} 53... Kc5 {[%clk 0:00:32.1]} 54.
a8=Q {[%clk 0:00:59.4]} 54... Kb4 {[%clk 0:00:34]} 55. Qa6 {[%clk 0:01:00.3]}
55... Kb3 {[%clk 0:00:34.8]} 56. Qc6 {[%clk 0:00:59.9]} 56... Kb2 {[%clk
0:00:36.7]} 57. Qc4 {[%clk 0:01:00.5]} 57... Ka3 {[%clk 0:00:37.6]} 58. Qb5
{[%clk 0:01:01.7]} 58... Ka2 {[%clk 0:00:38.7]} 59. Kc6 {[%clk 0:01:03]} 59...
Ka3 {[%clk 0:00:40.6]} 60. Kc5 {[%clk 0:01:04.6]} 60... Ka2 {[%clk 0:00:42.5]}
61. Kc4 {[%clk 0:01:06.1]} 61... Ka3 {[%clk 0:00:44.4]} 62. Qb3# {[%clk
0:01:06.9]} 1-0